{"text_format":"3","workbook":"xlsx","n_sheets":2,"sheets":["Учет оборудования","Параметры"],"not_rendered":{"defined_names":4},"read":"whole","date_system":"1900"}

{"sheet":"Учет оборудования","index":0,"n_rows":35,"n_cols":6,"rows_kept":35,"merged":[[0,1,2,2],[0,4,0,5]]}
[]
[{"$nulls":4},"Выделить изделия со сроком хранения больше чем:"]
[{"$nulls":4},3]
[]
[null,"КОД ОБОРУДОВАНИЯ","НАЗВАНИЕ ИЗДЕЛИЯ","КОМУ НАЗНАЧЕНО","ДАТА ВЫПУСКА","СРОК ХРАНЕНИЯ ИЗДЕЛИЯ"]
[null,"ИЗДЕЛИЕ0001","кресло","Сотрудник 1",{"$f":"TODAY()-25","v":"2012-10-27"},{"$f":"IF(таблОборудованиеИнвентарь[[#This Row],[ДАТА ВЫПУСКА]]<>\"\",TODAY()-таблОборудованиеИнвентарь[[#This Row],[ДАТА ВЫПУСКА]],\"\")","v":{"v":25,"d":"25 дней"}}]
[null,"ИЗДЕЛИЕ0002","лазерный принтер","Сотрудник 2",{"$f":"TODAY()-479","v":"2011-07-31"},{"$f":"IF(таблОборудованиеИнвентарь[[#This Row],[ДАТА ВЫПУСКА]]<>\"\",TODAY()-таблОборудованиеИнвентарь[[#This Row],[ДАТА ВЫПУСКА]],\"\")","v":{"v":479,"d":"479 дней"}}]
[null,"ИЗДЕЛИЕ0003","сканер","Сотрудник 3",{"$f":"TODAY()-177","v":"2012-05-28"},{"$f":"IF(таблОборудованиеИнвентарь[[#This Row],[ДАТА ВЫПУСКА]]<>\"\",TODAY()-таблОборудованиеИнвентарь[[#This Row],[ДАТА ВЫПУСКА]],\"\")","v":{"v":177,"d":"177 дней"}}]
[null,"ИЗДЕЛИЕ0004","лазерный принтер","Сотрудник 7",{"$f":"TODAY()-18","v":"2012-11-03"},{"$f":"IF(таблОборудованиеИнвентарь[[#This Row],[ДАТА ВЫПУСКА]]<>\"\",TODAY()-таблОборудованиеИнвентарь[[#This Row],[ДАТА ВЫПУСКА]],\"\")","v":{"v":18,"d":"18 дней"}}]
[null,"ИЗДЕЛИЕ0005","кофеварка","Сотрудник 20",{"$f":"TODAY()-227","v":"2012-04-08"},{"$f":"IF(таблОборудованиеИнвентарь[[#This Row],[ДАТА ВЫПУСКА]]<>\"\",TODAY()-таблОборудованиеИнвентарь[[#This Row],[ДАТА ВЫПУСКА]],\"\")","v":{"v":227,"d":"227 дней"}}]
[null,"ИЗДЕЛИЕ0006","сканер","Сотрудник 14",{"$f":"TODAY()-50","v":"2012-10-02"},{"$f":"IF(таблОборудованиеИнвентарь[[#This Row],[ДАТА ВЫПУСКА]]<>\"\",TODAY()-таблОборудованиеИнвентарь[[#This Row],[ДАТА ВЫПУСКА]],\"\")","v":{"v":50,"d":"50 дней"}}]
[null,"ИЗДЕЛИЕ0007","стол","Сотрудник 4",{"$f":"TODAY()-120","v":"2012-07-24"},{"$f":"IF(таблОборудованиеИнвентарь[[#This Row],[ДАТА ВЫПУСКА]]<>\"\",TODAY()-таблОборудованиеИнвентарь[[#This Row],[ДАТА ВЫПУСКА]],\"\")","v":{"v":120,"d":"120 дней"}}]
[null,"ИЗДЕЛИЕ0008","копировальная машина","Сотрудник 12",{"$f":"TODAY()-499","v":"2011-07-11"},{"$f":"IF(таблОборудованиеИнвентарь[[#This Row],[ДАТА ВЫПУСКА]]<>\"\",TODAY()-таблОборудованиеИнвентарь[[#This Row],[ДАТА ВЫПУСКА]],\"\")","v":{"v":499,"d":"499 дней"}}]
[null,"ИЗДЕЛИЕ0009","дополнительный монитор","Сотрудник 8",{"$f":"TODAY()-30","v":"2012-10-22"},{"$f":"IF(таблОборудованиеИнвентарь[[#This Row],[ДАТА ВЫПУСКА]]<>\"\",TODAY()-таблОборудованиеИнвентарь[[#This Row],[ДАТА ВЫПУСКА]],\"\")","v":{"v":30,"d":"30 дней"}}]
[null,"ИЗДЕЛИЕ0010","доска","Сотрудник 19",{"$f":"TODAY()-50","v":"2012-10-02"},{"$f":"IF(таблОборудованиеИнвентарь[[#This Row],[ДАТА ВЫПУСКА]]<>\"\",TODAY()-таблОборудованиеИнвентарь[[#This Row],[ДАТА ВЫПУСКА]],\"\")","v":{"v":50,"d":"50 дней"}}]
[null,"ИЗДЕЛИЕ0011","копировальная машина","Сотрудник 12",{"$f":"TODAY()-450","v":"2011-08-29"},{"$f":"IF(таблОборудованиеИнвентарь[[#This Row],[ДАТА ВЫПУСКА]]<>\"\",TODAY()-таблОборудованиеИнвентарь[[#This Row],[ДАТА ВЫПУСКА]],\"\")","v":{"v":450,"d":"450 дней"}}]
[null,"ИЗДЕЛИЕ0012","канцелярские принадлежности","Сотрудник 18",{"$f":"TODAY()-420","v":"2011-09-28"},{"$f":"IF(таблОборудованиеИнвентарь[[#This Row],[ДАТА ВЫПУСКА]]<>\"\",TODAY()-таблОборудованиеИнвентарь[[#This Row],[ДАТА ВЫПУСКА]],\"\")","v":{"v":420,"d":"420 дней"}}]
[null,"ИЗДЕЛИЕ0013","дополнительный монитор","Сотрудник 8",{"$f":"TODAY()-250","v":"2012-03-16"},{"$f":"IF(таблОборудованиеИнвентарь[[#This Row],[ДАТА ВЫПУСКА]]<>\"\",TODAY()-таблОборудованиеИнвентарь[[#This Row],[ДАТА ВЫПУСКА]],\"\")","v":{"v":250,"d":"250 дней"}}]
[null,"ИЗДЕЛИЕ0014","кофеварка","Сотрудник 9",{"$f":"TODAY()-45","v":"2012-10-07"},{"$f":"IF(таблОборудованиеИнвентарь[[#This Row],[ДАТА ВЫПУСКА]]<>\"\",TODAY()-таблОборудованиеИнвентарь[[#This Row],[ДАТА ВЫПУСКА]],\"\")","v":{"v":45,"d":"45 дней"}}]
[null,"ИЗДЕЛИЕ0015","канцелярские принадлежности","Сотрудник 13",{"$f":"TODAY()-502","v":"2011-07-08"},{"$f":"IF(таблОборудованиеИнвентарь[[#This Row],[ДАТА ВЫПУСКА]]<>\"\",TODAY()-таблОборудованиеИнвентарь[[#This Row],[ДАТА ВЫПУСКА]],\"\")","v":{"v":502,"d":"502 дней"}}]
[null,"ИЗДЕЛИЕ0016","сканер","Сотрудник 1",{"$f":"TODAY()-350","v":"2011-12-07"},{"$f":"IF(таблОборудованиеИнвентарь[[#This Row],[ДАТА ВЫПУСКА]]<>\"\",TODAY()-таблОборудованиеИнвентарь[[#This Row],[ДАТА ВЫПУСКА]],\"\")","v":{"v":350,"d":"350 дней"}}]
[null,"ИЗДЕЛИЕ0017","копировальная машина","Сотрудник 19",{"$f":"TODAY()-125","v":"2012-07-19"},{"$f":"IF(таблОборудованиеИнвентарь[[#This Row],[ДАТА ВЫПУСКА]]<>\"\",TODAY()-таблОборудованиеИнвентарь[[#This Row],[ДАТА ВЫПУСКА]],\"\")","v":{"v":125,"d":"125 дней"}}]
[null,"ИЗДЕЛИЕ0018","доска","Сотрудник 15",{"$f":"TODAY()-90","v":"2012-08-23"},{"$f":"IF(таблОборудованиеИнвентарь[[#This Row],[ДАТА ВЫПУСКА]]<>\"\",TODAY()-таблОборудованиеИнвентарь[[#This Row],[ДАТА ВЫПУСКА]],\"\")","v":{"v":90,"d":"90 дней"}}]
[null,"ИЗДЕЛИЕ0019","кресло","Сотрудник 16",{"$f":"TODAY()-730","v":"2010-11-22"},{"$f":"IF(таблОборудованиеИнвентарь[[#This Row],[ДАТА ВЫПУСКА]]<>\"\",TODAY()-таблОборудованиеИнвентарь[[#This Row],[ДАТА ВЫПУСКА]],\"\")","v":{"v":730,"d":"730 дней"}}]
[null,"ИЗДЕЛИЕ0020","ткань для удаления пыли (1 комплект)","Сотрудник 3",{"$f":"TODAY()-540","v":"2011-05-31"},{"$f":"IF(таблОборудованиеИнвентарь[[#This Row],[ДАТА ВЫПУСКА]]<>\"\",TODAY()-таблОборудованиеИнвентарь[[#This Row],[ДАТА ВЫПУСКА]],\"\")","v":{"v":540,"d":"540 дней"}}]
[null,"ИЗДЕЛИЕ0021","лазерный принтер","Сотрудник 7",{"$f":"TODAY()-18","v":"2012-11-03"},{"$f":"IF(таблОборудованиеИнвентарь[[#This Row],[ДАТА ВЫПУСКА]]<>\"\",TODAY()-таблОборудованиеИнвентарь[[#This Row],[ДАТА ВЫПУСКА]],\"\")","v":{"v":18,"d":"18 дней"}}]
[null,"ИЗДЕЛИЕ0022","ноутбук","Сотрудник 8",{"$f":"TODAY()-283","v":"2012-02-12"},{"$f":"IF(таблОборудованиеИнвентарь[[#This Row],[ДАТА ВЫПУСКА]]<>\"\",TODAY()-таблОборудованиеИнвентарь[[#This Row],[ДАТА ВЫПУСКА]],\"\")","v":{"v":283,"d":"283 дней"}}]
[null,"ИЗДЕЛИЕ0023","канцелярские принадлежности","Сотрудник 9",{"$f":"TODAY()-479","v":"2011-07-31"},{"$f":"IF(таблОборудованиеИнвентарь[[#This Row],[ДАТА ВЫПУСКА]]<>\"\",TODAY()-таблОборудованиеИнвентарь[[#This Row],[ДАТА ВЫПУСКА]],\"\")","v":{"v":479,"d":"479 дней"}}]
[null,"ИЗДЕЛИЕ0024","лазерный принтер","Сотрудник 19",{"$f":"TODAY()-355","v":"2011-12-02"},{"$f":"IF(таблОборудованиеИнвентарь[[#This Row],[ДАТА ВЫПУСКА]]<>\"\",TODAY()-таблОборудованиеИнвентарь[[#This Row],[ДАТА ВЫПУСКА]],\"\")","v":{"v":355,"d":"355 дней"}}]
[null,"ИЗДЕЛИЕ0025","стол","Сотрудник 7",{"$f":"TODAY()-28","v":"2012-10-24"},{"$f":"IF(таблОборудованиеИнвентарь[[#This Row],[ДАТА ВЫПУСКА]]<>\"\",TODAY()-таблОборудованиеИнвентарь[[#This Row],[ДАТА ВЫПУСКА]],\"\")","v":{"v":28,"d":"28 дней"}}]
[null,"ИЗДЕЛИЕ0026","доска","Сотрудник 8",{"$f":"TODAY()-28","v":"2012-10-24"},{"$f":"IF(таблОборудованиеИнвентарь[[#This Row],[ДАТА ВЫПУСКА]]<>\"\",TODAY()-таблОборудованиеИнвентарь[[#This Row],[ДАТА ВЫПУСКА]],\"\")","v":{"v":28,"d":"28 дней"}}]
[null,"ИЗДЕЛИЕ0027","ноутбук","Сотрудник 19",{"$f":"TODAY()-736","v":"2010-11-16"},{"$f":"IF(таблОборудованиеИнвентарь[[#This Row],[ДАТА ВЫПУСКА]]<>\"\",TODAY()-таблОборудованиеИнвентарь[[#This Row],[ДАТА ВЫПУСКА]],\"\")","v":{"v":736,"d":"736 дней"}}]
[null,"ИЗДЕЛИЕ0028","стол","Сотрудник 12",{"$f":"TODAY()-68","v":"2012-09-14"},{"$f":"IF(таблОборудованиеИнвентарь[[#This Row],[ДАТА ВЫПУСКА]]<>\"\",TODAY()-таблОборудованиеИнвентарь[[#This Row],[ДАТА ВЫПУСКА]],\"\")","v":{"v":68,"d":"68 дней"}}]
[null,"ИЗДЕЛИЕ0029","сканер","Сотрудник 14",{"$f":"TODAY()-67","v":"2012-09-15"},{"$f":"IF(таблОборудованиеИнвентарь[[#This Row],[ДАТА ВЫПУСКА]]<>\"\",TODAY()-таблОборудованиеИнвентарь[[#This Row],[ДАТА ВЫПУСКА]],\"\")","v":{"v":67,"d":"67 дней"}}]
[null,"ИЗДЕЛИЕ0030","кофеварка","Сотрудник 3",{"$f":"TODAY()-149","v":"2012-06-25"},{"$f":"IF(таблОборудованиеИнвентарь[[#This Row],[ДАТА ВЫПУСКА]]<>\"\",TODAY()-таблОборудованиеИнвентарь[[#This Row],[ДАТА ВЫПУСКА]],\"\")","v":{"v":149,"d":"149 дней"}}]

{"sheet":"Параметры","index":1,"n_rows":23,"n_cols":4,"rows_kept":23}
[]
[]
[null,"СОТРУДНИКИ",null,"ИЗДЕЛИЯ"]
[null,"Сотрудник 1",null,"кресло"]
[null,"Сотрудник 2",null,"кофеварка"]
[null,"Сотрудник 3",null,"копировальная машина"]
[null,"Сотрудник 4",null,"настольный компьютер"]
[null,"Сотрудник 5",null,"ткань для удаления пыли (1 комплект)"]
[null,"Сотрудник 6",null,"дополнительный монитор"]
[null,"Сотрудник 7",null,"струйный принтер"]
[null,"Сотрудник 8",null,"ноутбук"]
[null,"Сотрудник 9",null,"лазерный принтер"]
[null,"Сотрудник 10",null,"разметочные карандаши (3 пачки)"]
[null,"Сотрудник 11",null,"сканер"]
[null,"Сотрудник 12",null,"канцелярские принадлежности"]
[null,"Сотрудник 13",null,"стол"]
[null,"Сотрудник 14",null,"USB-накопитель"]
[null,"Сотрудник 15",null,"доска"]
[null,"Сотрудник 16"]
[null,"Сотрудник 17"]
[null,"Сотрудник 18"]
[null,"Сотрудник 19"]
[null,"Сотрудник 20"]